[Event "34rd NATO Championship 2024"]
[Site "Rhodes"]
[Date "2024.10.22"]
[Round "2.15"]
[White "Circenis, Kaspars"]
[Black "Parker, Glen D"]
[Result "1/2-1/2"]
[ECO "D30"]
[WhiteElo "2120"]
[BlackElo "1979"]
[Annotator "RC"]
[PlyCount "47"]
[EventDate "2024.09.18"]
[EventType "swiss"]
[EventCountry "GRE"]
[SourceTitle "playchess.com"]
[Source "ChessBase"]
[SourceQuality "1"]
[TimeControl "5400+30"]

1. d4 {[%emt 0:00:00]} e6 {[%emt 0:01:25]} 2. c4 {[%emt 0:00:10]} d5 {[%emt 0:00:06]} 3. Nf3 {[%emt 0:00:22]} Nf6 {[%emt 0:00:34]} 4. Bg5 {[%emt 0:00:20]} Bb4+ {[%emt 0:02:29]} 5. Nbd2 {[%emt 0:00:46]} h6 {[%emt 0:02:31]} 6. Bxf6 {[%emt 0:05:00]} Qxf6 {[%emt 0:00:57]} 7. e3 {[%emt 0:01:15]} O-O {[%emt 0:01:29]} 8. Bd3 {[%emt 0:00:55]} dxc4 {[%emt 0:16:19]} 9. Bxc4 {[%emt 0:00:02]} Nc6 {[%emt 0:01:50]} 10. O-O {[%emt 0:00:15]} e5 {[%emt 0:02:06]} 11. dxe5 {[%emt 0:12:15]} Nxe5 {[%emt 0:00:43]} 12. Nxe5 {[%emt 0:00:01]} Qxe5 {[%emt 0:00:11]} 13. Qc1 {[%emt 0:03:04]} Bg4 {[%emt 0:09:43]} 14. Nf3 {[%emt 0:04:16]} Bxf3 {[%emt 0:22:04]} 15. gxf3 {[%emt 0:00:02]} Qh5 {[%emt 0:02:36]} 16. f4 {[%emt 0:04:06]} Qg4+ {[%emt 0:03:46]} 17. Kh1 {[%emt 0:00:11]} Qf3+ {[%emt 0:00:02]} 18. Kg1 {[%emt 0:00:01]} Qg4+ {[%emt 0:06:35]} 19. Kh1 {[%emt 0:00:02]} Qf3+ {[%emt 0:00:06]} 20. Kg1 {[%emt 0:00:02]} Rad8 {[%emt 0:09:25]} 21. Rd1 {[%emt 0:00:19]} Qg4+ {[%emt 0:00:21]} 22. Kh1 {[%emt 0:02:45]} Qf3+ {[%emt 0:01:20]} 23. Kg1 {[%emt 0:00:02]} Qg4+ {[%emt 0:02:47]} 24. Kh1 {[%emt 0:00:17]} 1/2-1/2

[Event "34rd NATO Championship 2024"]
[Site "Rhodes"]
[Date "2024.10.22"]
[Round "2.16"]
[White "Peraino, Andrew"]
[Black "Mautone, Valerio"]
[Result "1-0"]
[ECO "B51"]
[WhiteElo "1965"]
[BlackElo "2117"]
[Annotator "RC"]
[PlyCount "75"]
[EventDate "2024.09.18"]
[EventType "swiss"]
[EventCountry "GRE"]
[SourceTitle "playchess.com"]
[Source "ChessBase"]
[SourceQuality "1"]
[TimeControl "5400+30"]

1. e4 {[%emt 0:01:31]} c5 {[%emt 0:00:06]} 2. Nf3 {[%emt 0:00:06]} d6 {[%emt 0:00:07]} 3. Bb5+ {[%emt 0:00:41]} Nd7 {[%emt 0:00:08]} 4. a4 {[%emt 0:00:23]} g6 {[%emt 0:00:40]} 5. O-O {[%emt 0:00:38]} Bg7 {[%emt 0:00:08]} 6. Re1 {[%emt 0:00:12]} Ngf6 {[%emt 0:00:31]} 7. c3 {[%emt 0:00:55]} O-O {[%emt 0:01:33]} 8. d4 {[%emt 0:00:48]} a6 {[%emt 0:05:03]} 9. Bf1 {[%emt 0:00:18]} Qc7 {[%emt 0:03:30]} 10. h3 {[%emt 0:07:17]} e5 {[%emt 0:11:09]} 11. Na3 {[%emt 0:06:18]} cxd4 {[%emt 0:10:35]} 12. cxd4 {[%emt 0:00:15]} Re8 {[%emt 0:04:44]} 13. d5 {[%emt 0:07:43]} Nh5 {[%emt 0:17:06]} 14. Be3 {[%emt 0:04:00]} f5 {[%emt 0:07:32]} 15. Rc1 {[%emt 0:00:28]} Qd8 {[%emt 0:00:54]} 16. exf5 {[%emt 0:01:43]} gxf5 {[%emt 0:01:12]} 17. Ng5 {[%emt 0:01:14]} Ndf6 {[%emt 0:04:50]} 18. Nc4 {[%emt 0:03:41]} f4 {[%emt 0:09:15]} 19. Bb6 {[%emt 0:02:59]} Qe7 {[%emt 0:00:18]} 20. Nxe5 {[%emt 0:03:33]} dxe5 {[%emt 0:01:40]} 21. d6 {[%emt 0:00:09]} Qf8 {[%emt 0:05:38]} 22. Bc4+ {[%emt 0:09:52]} Kh8 {[%emt 0:00:27]} 23. Nf7+ {[%emt 0:00:07]} Kg8 {[%emt 0:00:47]} 24. Rxe5 {[%emt 0:06:48]} Rxe5 {[%emt 0:03:58]} 25. Nxe5+ {[%emt 0:00:09]} Kh8 {[%emt 0:01:06]} 26. d7 {[%emt 0:03:19]} Bxd7 {[%emt 0:01:57]} 27. Nxd7 {[%emt 0:00:27]} Nxd7 {[%emt 0:00:04]} 28. Qxd7 {[%emt 0:00:14]} Bxb2 {[%emt 0:03:18]} 29. Rb1 {[%emt 0:03:14]} Qg7 {[%emt 0:01:46]} 30. Qf5 {[%emt 0:01:10]} Qc3 {[%emt 0:03:37]} 31. Bd3 {[%emt 0:07:48]} Nf6 {[%emt 0:00:59]} 32. Ba5 {[%emt 0:00:14]} Qd4 {[%emt 0:01:00]} 33. Bc7 {[%emt 0:02:53]} Re8 {[%emt 0:00:25]} 34. Bxf4 {[%emt 0:00:47]} Qxa4 {[%emt 0:00:48]} 35. Rxb2 {[%emt 0:00:35]} Qa1+ {[%emt 0:00:37]} 36. Rb1 {[%emt 0:00:16]} Re1+ {[%emt 0:00:28]} 37. Rxe1 {[%emt 0:00:19]} Qxe1+ {[%emt 0:00:03]} 38. Kh2 {[%emt 0:00:12]} 1-0

[Event "34rd NATO Championship 2024"]
[Site "Rhodes"]
[Date "2024.10.22"]
[Round "2.17"]
[White "Tetepoulidis, Ioannis"]
[Black "Dekker, Ard"]
[Result "1-0"]
[ECO "B12"]
[WhiteElo "2100"]
[BlackElo "1963"]
[Annotator "RC"]
[PlyCount "37"]
[EventDate "2024.09.18"]
[EventType "swiss"]
[EventCountry "GRE"]
[SourceTitle "playchess.com"]
[Source "ChessBase"]
[SourceQuality "1"]
[TimeControl "5400+30"]

1. e4 {[%emt 0:00:03]} c6 {[%emt 0:00:05]} 2. d4 {[%emt 0:00:03]} d5 {[%emt 0:00:11]} 3. e5 {[%emt 0:00:04]} c5 {[%emt 0:00:17]} 4. c4 {[%emt 0:00:04]} Nc6 {[%emt 0:03:16]} 5. Nf3 {[%emt 0:00:17]} cxd4 {[%emt 0:06:40]} 6. Nxd4 {[%emt 0:00:11]} e6 {[%emt 0:04:14]} 7. Nc3 {[%emt 0:00:47]} Bb4 {[%emt 0:01:15]} 8. Nxc6 {[%emt 0:00:44]} bxc6 {[%emt 0:00:03]} 9. Bd3 {[%emt 0:00:21]} Qa5 {[%emt 0:18:58]} 10. O-O {[%emt 0:06:30]} Ne7 {[%emt 0:10:54]} 11. cxd5 {[%emt 0:25:48]} cxd5 {[%emt 0:00:05]} 12. Bb5+ {[%emt 0:01:54]} Kf8 {[%emt 0:06:35]} 13. Bd3 {[%emt 0:09:50]} Bxc3 {[%emt 0:02:02]} 14. bxc3 {[%emt 0:00:08]} Qxc3 {[%emt 0:00:21]} 15. Rb1 {[%emt 0:00:08]} Qxe5 {[%emt 0:01:36]} 16. Ba3 {[%emt 0:02:11]} f6 {[%emt 0:00:42]} 17. Qc2 {[%emt 0:10:02]} f5 {[%emt 0:07:23]} 18. Rfe1 {[%emt 0:05:43]} Qf6 {[%emt 0:00:29]} 19. Qc6 {[%emt 0:01:05]} 1-0

[Event "34rd NATO Championship 2024"]
[Site "Rhodes"]
[Date "2024.10.22"]
[Round "2.18"]
[White "Tustanowski, Mateusz"]
[Black "Giedraitis, Mingaudas"]
[Result "1-0"]
[ECO "B15"]
[WhiteElo "2081"]
[BlackElo "1950"]
[Annotator "RC"]
[PlyCount "91"]
[EventDate "2024.09.18"]
[EventType "swiss"]
[EventCountry "GRE"]
[SourceTitle "playchess.com"]
[Source "ChessBase"]
[SourceQuality "1"]
[TimeControl "5400+30"]

1. e4 {[%emt 0:00:05]} c6 {[%emt 0:00:35]} 2. d4 {[%emt 0:00:11]} d5 {[%emt 0:00:08]} 3. Nc3 {[%emt 0:00:25]} dxe4 {[%emt 0:00:33]} 4. Nxe4 {[%emt 0:00:08]} Nf6 {[%emt 0:00:21]} 5. Nxf6+ {[%emt 0:00:08]} exf6 {[%emt 0:00:14]} 6. c3 {[%emt 0:01:47]} Bd6 {[%emt 0:00:27]} 7. Bd3 {[%emt 0:03:31]} O-O {[%emt 0:01:04]} 8. Ne2 {[%emt 0:02:21]} Re8 {[%emt 0:01:19]} 9. Qc2 {[%emt 0:02:30]} h5 {[%emt 0:03:09]} 10. Be3 {[%emt 0:14:13]} Bg4 {[%emt 0:04:16]} 11. O-O-O {[%emt 0:04:15]} b5 {[%emt 0:05:30]} 12. Rde1 {[%emt 0:16:04]} Nd7 {[%emt 0:12:54]} 13. Ng3 {[%emt 0:03:09]} h4 {[%emt 0:30:31]} 14. Bh7+ {[%emt 0:13:25]} Kh8 {[%emt 0:02:44]} 15. Bf5 {[%emt 0:01:35]} Bxf5 {[%emt 0:06:59]} 16. Nxf5 {[%emt 0:00:07]} Qc7 {[%emt 0:00:27]} 17. Nxh4 {[%emt 0:00:45]} a5 {[%emt 0:02:55]} 18. Nf5 {[%emt 0:02:55]} Nb6 {[%emt 0:01:03]} 19. h4 {[%emt 0:02:50]} Nc4 {[%emt 0:00:58]} 20. Qd3 {[%emt 0:04:15]} Bf8 {[%emt 0:08:18]} 21. h5 {[%emt 0:00:43]} Rad8 {[%emt 0:00:36]} 22. g3 {[%emt 0:01:59]} c5 {[%emt 0:01:18]} 23. Rh4 {[%emt 0:02:09]} Rd5 {[%emt 0:02:00]} 24. Re4 {[%emt 0:02:57]} Qd7 {[%emt 0:09:22]} 25. g4 {[%emt 0:05:28]} cxd4 {[%emt 0:01:36]} 26. Bxd4 {[%emt 0:00:41]} Ne5 {[%emt 0:00:38]} 27. Qh3 {[%emt 0:01:08]} Rc8 {[%emt 0:00:27]} 28. g5 {[%emt 0:10:34]} Qxf5 {[%emt 0:01:19]} 29. Qxf5 {[%emt 0:00:04]} Nd3+ {[%emt 0:00:09]} 30. Kd2 {[%emt 0:00:06]} Rxf5 {[%emt 0:00:11]} 31. Kxd3 {[%emt 0:00:08]} Bc5 {[%emt 0:01:55]} 32. g6 {[%emt 0:00:29]} Rf8 {[%emt 0:00:59]} 33. Re8 {[%emt 0:03:19]} Kg8 {[%emt 0:00:04]} 34. Bxc5 {[%emt 0:00:22]} Rxc5 {[%emt 0:00:06]} 35. R1e7 {[%emt 0:00:06]} fxg6 {[%emt 0:01:10]} 36. hxg6 {[%emt 0:00:04]} Rg5 {[%emt 0:01:21]} 37. Rxf8+ {[%emt 0:00:06]} Kxf8 {[%emt 0:00:03]} 38. Rf7+ {[%emt 0:00:04]} Kg8 {[%emt 0:00:12]} 39. Rb7 {[%emt 0:00:05]} Rxg6 {[%emt 0:00:37]} 40. Rxb5 {[%emt 0:00:04]} a4 {[%emt 0:01:00]} 41. c4 {[%emt 0:01:34]} Rg2 {[%emt 0:00:22]} 42. c5 {[%emt 0:01:30]} Kf7 {[%emt 0:00:13]} 43. c6 {[%emt 0:01:27]} Ke6 {[%emt 0:00:21]} 44. Rc5 {[%emt 0:00:28]} Rg5 {[%emt 0:01:19]} 45. Rxg5 {[%emt 0:01:25]} fxg5 {[%emt 0:00:02]} 46. Ke4 {[%emt 0:01:51]} 1-0

[Event "34rd NATO Championship 2024"]
[Site "Rhodes"]
[Date "2024.10.22"]
[Round "2.19"]
[White "Verlaine, Alexandre"]
[Black "Mestek, Igor"]
[Result "0-1"]
[ECO "D21"]
[WhiteElo "1962"]
[BlackElo "2080"]
[Annotator "RC"]
[PlyCount "54"]
[EventDate "2024.09.18"]
[EventType "swiss"]
[EventCountry "GRE"]
[SourceTitle "playchess.com"]
[Source "ChessBase"]
[SourceQuality "1"]
[TimeControl "5400+30"]

1. d4 {[%emt 0:00:03]} d5 {[%emt 0:00:30]} 2. c4 {[%emt 0:00:16]} dxc4 {[%emt 0:00:37]} 3. Nf3 {[%emt 0:00:46]} a6 {[%emt 0:01:52]} 4. a4 {[%emt 0:03:12]} Nf6 {[%emt 0:04:58]} 5. g3 {[%emt 0:04:07]} c5 {[%emt 0:07:10]} 6. Bg2 {[%emt 0:11:10]} Nc6 {[%emt 0:01:13]} 7. e3 {[%emt 0:02:42]} Bf5 {[%emt 0:05:15]} 8. O-O {[%emt 0:03:15]} e6 {[%emt 0:02:38]} 9. Ne5 {[%emt 0:19:32]} Qc7 {[%emt 0:17:39]} 10. Nxc6 {[%emt 0:06:26]} bxc6 {[%emt 0:00:09]} 11. Re1 {[%emt 0:14:52]} Rd8 {[%emt 0:01:44]} 12. Nd2 {[%emt 0:06:57]} Bd3 {[%emt 0:05:44]} 13. Nf3 {[%emt 0:03:06]} Bd6 {[%emt 0:08:11]} 14. Bd2 {[%emt 0:11:44]} O-O {[%emt 0:04:56]} 15. Rc1 {[%emt 0:01:41]} Rb8 {[%emt 0:01:08]} 16. dxc5 {[%emt 0:03:26]} Bxc5 {[%emt 0:00:45]} 17. a5 {[%emt 0:00:54]} Rfd8 {[%emt 0:05:15]} 18. Qa4 {[%emt 0:00:29]} Rxb2 {[%emt 0:01:24]} 19. Bc3 {[%emt 0:00:34]} Rb5 {[%emt 0:00:14]} 20. Ne5 {[%emt 0:00:27]} Nd5 {[%emt 0:04:34]} 21. Bxd5 {[%emt 0:01:28]} Rxd5 {[%emt 0:02:15]} 22. Nxc4 {[%emt 0:00:23]} h5 {[%emt 0:06:58]} 23. e4 {[%emt 0:00:29]} Rg5 {[%emt 0:00:19]} 24. Nb2 {[%emt 0:00:12]} Rxg3+ {[%emt 0:00:45]} 25. hxg3 {[%emt 0:01:57]} Qxg3+ {[%emt 0:00:06]} 26. Kh1 {[%emt 0:00:04]} Bxf2 {[%emt 0:00:37]} 27. Be5 {[%emt 0:00:56]} Rxe5 {[%emt 0:00:11]} 0-1

[Event "34rd NATO Championship 2024"]
[Site "Rhodes"]
[Date "2024.10.22"]
[Round "2.20"]
[White "Jacob, Tobias"]
[Black "Skwarczynski, Marcin"]
[Result "1/2-1/2"]
[ECO "D46"]
[WhiteElo "2073"]
[BlackElo "1940"]
[Annotator "RC"]
[PlyCount "118"]
[EventDate "2024.09.18"]
[EventType "swiss"]
[EventCountry "GRE"]
[SourceTitle "playchess.com"]
[Source "ChessBase"]
[SourceQuality "1"]
[TimeControl "5400+30"]

1. d4 {[%emt 0:00:05]} d5 {[%emt 0:00:03]} 2. c4 {[%emt 0:00:07]} c6 {[%emt 0:00:03]} 3. Nf3 {[%emt 0:00:09]} Nf6 {[%emt 0:00:05]} 4. e3 {[%emt 0:00:10]} Nbd7 {[%emt 0:00:19]} 5. Bd3 {[%emt 0:00:43]} e6 {[%emt 0:01:49]} 6. Nbd2 {[%emt 0:00:20]} Bd6 {[%emt 0:00:57]} 7. O-O {[%emt 0:00:58]} O-O {[%emt 0:01:32]} 8. e4 {[%emt 0:00:10]} dxe4 {[%emt 0:01:49]} 9. Nxe4 {[%emt 0:00:08]} Nxe4 {[%emt 0:14:33]} 10. Bxe4 {[%emt 0:00:25]} h6 {[%emt 0:09:24]} 11. b3 {[%emt 0:05:48]} Qa5 {[%emt 0:18:58]} 12. Bb2 {[%emt 0:05:59]} Rd8 {[%emt 0:06:36]} 13. Bc2 {[%emt 0:07:25]} Qh5 {[%emt 0:06:54]} 14. Qd3 {[%emt 0:06:33]} Nf8 {[%emt 0:00:09]} 15. Qe4 {[%emt 0:04:49]} Bd7 {[%emt 0:09:21]} 16. h3 {[%emt 0:16:27]} Be8 {[%emt 0:03:05]} 17. Rad1 {[%emt 0:08:45]} f6 {[%emt 0:06:00]} 18. Qe3 {[%emt 0:05:38]} Bg6 {[%emt 0:06:00]} 19. Bxg6 {[%emt 0:01:57]} Qxg6 {[%emt 0:00:06]} 20. Nd2 {[%emt 0:04:57]} Qf5 {[%emt 0:02:59]} 21. Ne4 {[%emt 0:08:05]} Qf4 {[%emt 0:03:28]} 22. Qxf4 {[%emt 0:01:50]} Bxf4 {[%emt 0:00:06]} 23. Ba3 {[%emt 0:05:40]} b6 {[%emt 0:03:39]} 24. Rfe1 {[%emt 0:03:21]} Kf7 {[%emt 0:02:07]} 25. g3 {[%emt 0:01:01]} Bc7 {[%emt 0:00:10]} 26. Nc3 {[%emt 0:02:17]} Bd6 {[%emt 0:00:11]} 27. Bb2 {[%emt 0:02:20]} Rd7 {[%emt 0:00:28]} 28. Re3 {[%emt 0:02:17]} Rad8 {[%emt 0:00:39]} 29. Red3 {[%emt 0:01:40]} Bc7 {[%emt 0:00:19]} 30. Kg2 {[%emt 0:03:49]} f5 {[%emt 0:01:28]} 31. f4 {[%emt 0:00:39]} e5 {[%emt 0:00:34]} 32. fxe5 {[%emt 0:00:54]} Bxe5 {[%emt 0:00:06]} 33. Ne2 {[%emt 0:00:46]} Bc7 {[%emt 0:00:16]} 34. Kf3 {[%emt 0:00:41]} g5 {[%emt 0:00:13]} 35. d5 {[%emt 0:00:21]} Ng6 {[%emt 0:00:20]} 36. Kf2 {[%emt 0:00:42]} cxd5 {[%emt 0:02:13]} 37. Rxd5 {[%emt 0:00:01]} Rxd5 {[%emt 0:00:09]} 38. cxd5 {[%emt 0:00:01]} h5 {[%emt 0:00:56]} 39. Bc1 {[%emt 0:00:53]} g4 {[%emt 0:01:01]} 40. hxg4 {[%emt 0:00:05]} fxg4 {[%emt 0:00:29]} 41. Bg5 {[%emt 0:00:27]} Rd7 {[%emt 0:00:10]} 42. Nc3 {[%emt 0:01:13]} Bd8 {[%emt 0:01:01]} 43. Be3 {[%emt 0:00:48]} h4 {[%emt 0:00:08]} 44. gxh4 {[%emt 0:00:10]} Bxh4+ {[%emt 0:00:30]} 45. Kg2 {[%emt 0:00:07]} Ne7 {[%emt 0:00:12]} 46. Rf1+ {[%emt 0:00:53]} Kg6 {[%emt 0:00:06]} 47. Rf4 {[%emt 0:00:24]} Nxd5 {[%emt 0:01:23]} 48. Nxd5 {[%emt 0:00:33]} Rxd5 {[%emt 0:00:06]} 49. Rxg4+ {[%emt 0:00:05]} Kh5 {[%emt 0:00:31]} 50. Rg7 {[%emt 0:00:26]} Bf6 {[%emt 0:01:09]} 51. Rxa7 {[%emt 0:00:22]} b5 {[%emt 0:00:30]} 52. Kf3 {[%emt 0:00:22]} Kg6 {[%emt 0:00:35]} 53. Ke4 {[%emt 0:01:14]} Rh5 {[%emt 0:00:03]} 54. Rd7 {[%emt 0:00:44]} Bc3 {[%emt 0:00:35]} 55. a3 {[%emt 0:00:36]} Bb2 {[%emt 0:00:31]} 56. Ra7 {[%emt 0:00:33]} Re5+ {[%emt 0:00:39]} 57. Kd3 {[%emt 0:00:13]} Kf5 {[%emt 0:00:37]} 58. Rc7 {[%emt 0:00:28]} Rd5+ {[%emt 0:00:14]} 59. Kc2 {[%emt 0:00:11]} Bxa3 {[%emt 0:00:09]} 1/2-1/2

[Event "34rd NATO Championship 2024"]
[Site "Rhodes"]
[Date "2024.10.22"]
[Round "2.21"]
[White "Alainis, Artis"]
[Black "Michalowski, Patryk"]
[Result "1/2-1/2"]
[ECO "B50"]
[WhiteElo "1937"]
[BlackElo "2054"]
[Annotator "RC"]
[PlyCount "86"]
[EventDate "2024.09.18"]
[EventType "swiss"]
[EventCountry "GRE"]
[SourceTitle "playchess.com"]
[Source "ChessBase"]
[SourceQuality "1"]
[TimeControl "5400+30"]

1. e4 {[%emt 0:00:02]} c5 {[%emt 0:00:06]} 2. Nf3 {[%emt 0:00:04]} e6 {[%emt 0:00:06]} 3. d3 {[%emt 0:00:08]} Nc6 {[%emt 0:00:21]} 4. g3 {[%emt 0:00:08]} Be7 {[%emt 0:00:25]} 5. Bg2 {[%emt 0:00:13]} d6 {[%emt 0:00:15]} 6. O-O {[%emt 0:01:13]} Nf6 {[%emt 0:00:19]} 7. Re1 {[%emt 0:01:26]} O-O {[%emt 0:00:27]} 8. c3 {[%emt 0:02:20]} Bd7 {[%emt 0:02:03]} 9. Nbd2 {[%emt 0:02:39]} Ne5 {[%emt 0:01:06]} 10. Bf1 {[%emt 0:06:45]} Bc6 {[%emt 0:11:42]} 11. a4 {[%emt 0:04:09]} Qc7 {[%emt 0:02:36]} 12. d4 {[%emt 0:07:51]} Nxf3+ {[%emt 0:01:18]} 13. Qxf3 {[%emt 0:00:47]} cxd4 {[%emt 0:00:32]} 14. cxd4 {[%emt 0:00:03]} Nxe4 {[%emt 0:02:08]} 15. Nxe4 {[%emt 0:00:06]} f5 {[%emt 0:00:15]} 16. Qb3 {[%emt 0:00:02]} fxe4 {[%emt 0:27:45]} 17. Qxe6+ {[%emt 0:00:18]} Kh8 {[%emt 0:06:58]} 18. d5 {[%emt 0:14:09]} Be8 {[%emt 0:02:53]} 19. Rxe4 {[%emt 0:00:47]} Bf6 {[%emt 0:01:09]} 20. Bf4 {[%emt 0:00:13]} Bf7 {[%emt 0:06:37]} 21. Qxd6 {[%emt 0:05:27]} Qxd6 {[%emt 0:00:16]} 22. Bxd6 {[%emt 0:00:01]} Bxd5 {[%emt 0:00:45]} 23. Re3 {[%emt 0:08:58]} Rfe8 {[%emt 0:03:36]} 24. Bg2 {[%emt 0:22:18]} Rxe3 {[%emt 0:01:36]} 25. fxe3 {[%emt 0:00:01]} Bxg2 {[%emt 0:00:58]} 26. Kxg2 {[%emt 0:00:07]} Rd8 {[%emt 0:00:39]} 27. Ba3 {[%emt 0:02:34]} Bxb2 {[%emt 0:02:33]} 28. Bxb2 {[%emt 0:04:11]} Rd2+ {[%emt 0:00:06]} 29. Kf3 {[%emt 0:00:02]} Rxb2 {[%emt 0:00:07]} 30. h4 {[%emt 0:00:07]} Kg8 {[%emt 0:02:07]} 31. e4 {[%emt 0:01:00]} Kf7 {[%emt 0:00:59]} 32. Kf4 {[%emt 0:00:45]} Kf6 {[%emt 0:03:10]} 33. Rc1 {[%emt 0:04:21]} Rf2+ {[%emt 0:01:20]} 34. Ke3 {[%emt 0:00:03]} Ra2 {[%emt 0:00:43]} 35. Rc7 {[%emt 0:00:14]} Rxa4 {[%emt 0:01:12]} 36. Rxb7 {[%emt 0:00:01]} h6 {[%emt 0:05:00]} 37. h5 {[%emt 0:01:39]} Ra5 {[%emt 0:02:38]} 38. Kf4 {[%emt 0:00:16]} Rxh5 {[%emt 0:01:44]} 39. Rxa7 {[%emt 0:00:15]} g5+ {[%emt 0:02:08]} 40. Kf3 {[%emt 0:01:21]} Rh1 {[%emt 0:00:25]} 41. Ra6+ {[%emt 0:00:47]} Ke5 {[%emt 0:00:23]} 42. Ra5+ {[%emt 0:00:08]} Kf6 {[%emt 0:01:22]} 43. Ra6+ {[%emt 0:00:01]} Ke5 {[%emt 0:09:12]} 1/2-1/2

[Event "34rd NATO Championship 2024"]
[Site "Rhodes"]
[Date "2024.10.22"]
[Round "2.22"]
[White "Tikerpuu, Mati"]
[Black "Flaata, Alexander R."]
[Result "0-1"]
[ECO "A00"]
[WhiteElo "1933"]
[BlackElo "2040"]
[Annotator "RC"]
[PlyCount "92"]
[EventDate "2024.09.18"]
[EventType "swiss"]
[EventCountry "GRE"]
[SourceTitle "playchess.com"]
[Source "ChessBase"]
[SourceQuality "1"]
[TimeControl "5400+30"]

1. b4 {[%emt 0:00:03]} e5 {[%emt 0:00:47]} 2. Bb2 {[%emt 0:00:06]} Bxb4 {[%emt 0:00:47]} 3. Bxe5 {[%emt 0:00:08]} Nf6 {[%emt 0:00:14]} 4. c4 {[%emt 0:00:17]} O-O {[%emt 0:01:21]} 5. Nf3 {[%emt 0:00:12]} Re8 {[%emt 0:01:11]} 6. e3 {[%emt 0:00:55]} d5 {[%emt 0:01:39]} 7. cxd5 {[%emt 0:01:21]} Nxd5 {[%emt 0:00:32]} 8. Be2 {[%emt 0:00:48]} c5 {[%emt 0:01:44]} 9. O-O {[%emt 0:01:13]} Nc6 {[%emt 0:00:26]} 10. Bb2 {[%emt 0:00:13]} Bg4 {[%emt 0:09:01]} 11. h3 {[%emt 0:02:30]} Bh5 {[%emt 0:02:37]} 12. Qc2 {[%emt 0:05:19]} Nf4 {[%emt 0:08:09]} 13. exf4 {[%emt 0:09:23]} Rxe2 {[%emt 0:00:11]} 14. g4 {[%emt 0:00:40]} Qd5 {[%emt 0:06:37]} 15. Kg2 {[%emt 0:15:58]} Rae8 {[%emt 0:01:10]} 16. Nc3 {[%emt 0:02:33]} Qxf3+ {[%emt 0:09:06]} 17. Kxf3 {[%emt 0:00:40]} Nd4+ {[%emt 0:00:08]} 18. Kg2 {[%emt 0:08:25]} Nxc2 {[%emt 0:00:18]} 19. Nxe2 {[%emt 0:01:11]} Nxa1 {[%emt 0:00:14]} 20. Ng3 {[%emt 0:07:15]} Bg6 {[%emt 0:02:41]} 21. f5 {[%emt 0:01:27]} Nc2 {[%emt 0:00:14]} 22. fxg6 {[%emt 0:02:01]} Ne1+ {[%emt 0:01:09]} 23. Kh1 {[%emt 0:01:26]} hxg6 {[%emt 0:00:29]} 24. Bc3 {[%emt 0:02:18]} Nf3 {[%emt 0:06:27]} 25. Bxb4 {[%emt 0:03:23]} cxb4 {[%emt 0:00:06]} 26. d3 {[%emt 0:00:44]} a5 {[%emt 0:02:18]} 27. Ne4 {[%emt 0:02:46]} b5 {[%emt 0:01:49]} 28. Rb1 {[%emt 0:05:59]} f5 {[%emt 0:05:37]} 29. Nd6 {[%emt 0:03:27]} Re1+ {[%emt 0:00:25]} 30. Rxe1 {[%emt 0:00:12]} Nxe1 {[%emt 0:00:06]} 31. d4 {[%emt 0:01:00]} fxg4 {[%emt 0:01:50]} 32. hxg4 {[%emt 0:00:30]} Nd3 {[%emt 0:00:11]} 33. Kg2 {[%emt 0:00:20]} Nc1 {[%emt 0:00:31]} 34. Kf3 {[%emt 0:04:55]} Nxa2 {[%emt 0:00:15]} 35. Nxb5 {[%emt 0:00:38]} b3 {[%emt 0:01:42]} 36. Ke3 {[%emt 0:01:04]} b2 {[%emt 0:00:14]} 37. Na3 {[%emt 0:00:35]} Nc3 {[%emt 0:00:20]} 38. Kd3 {[%emt 0:00:47]} b1=Q+ {[%emt 0:00:33]} 39. Nxb1 {[%emt 0:00:09]} Nxb1 {[%emt 0:00:07]} 40. Kc2 {[%emt 0:01:06]} Na3+ {[%emt 0:00:31]} 41. Kb3 {[%emt 0:00:10]} Nb5 {[%emt 0:00:16]} 42. d5 {[%emt 0:01:55]} Kf7 {[%emt 0:01:50]} 43. Ka4 {[%emt 0:00:29]} Nc3+ {[%emt 0:00:17]} 44. Kxa5 {[%emt 0:00:06]} Nxd5 {[%emt 0:00:03]} 45. Kb5 {[%emt 0:00:21]} Kf6 {[%emt 0:00:15]} 46. Kc5 {[%emt 0:00:08]} Ke5 {[%emt 0:00:09]} 0-1

[Event "34rd NATO Championship 2024"]
[Site "Rhodes"]
[Date "2024.10.22"]
[Round "2.23"]
[White "Onley, David E"]
[Black "Hater, David"]
[Result "1-0"]
[ECO "C22"]
[WhiteElo "2040"]
[BlackElo "1922"]
[Annotator "RC"]
[PlyCount "41"]
[EventDate "2024.09.18"]
[EventType "swiss"]
[EventCountry "GRE"]
[SourceTitle "playchess.com"]
[Source "ChessBase"]
[SourceQuality "1"]
[TimeControl "5400+30"]

1. e4 {[%emt 0:00:03]} e5 {[%emt 0:00:03]} 2. d4 {[%emt 0:00:06]} exd4 {[%emt 0:00:08]} 3. Qxd4 {[%emt 0:00:11]} Nc6 {[%emt 0:00:36]} 4. Qe3 {[%emt 0:00:14]} Bb4+ {[%emt 0:05:21]} 5. Nc3 {[%emt 0:00:00]} Nge7 {[%emt 0:03:45]} 6. Bd2 {[%emt 0:00:38]} O-O {[%emt 0:00:36]} 7. O-O-O {[%emt 0:00:52]} d6 {[%emt 0:08:13]} 8. f4 {[%emt 0:02:07]} a6 {[%emt 0:04:41]} 9. Qg3 {[%emt 0:02:20]} f5 {[%emt 0:07:25]} 10. e5 {[%emt 0:03:28]} Qe8 {[%emt 0:01:34]} 11. Nf3 {[%emt 0:05:56]} Ng6 {[%emt 0:03:37]} 12. Nd5 {[%emt 0:04:38]} Bxd2+ {[%emt 0:04:23]} 13. Rxd2 {[%emt 0:00:16]} Qd8 {[%emt 0:00:08]} 14. Ng5 {[%emt 0:12:18]} Bd7 {[%emt 0:14:40]} 15. Bc4 {[%emt 0:06:43]} Kh8 {[%emt 0:00:09]} 16. e6 {[%emt 0:08:20]} Be8 {[%emt 0:00:08]} 17. e7 {[%emt 0:01:58]} Ncxe7 {[%emt 0:00:18]} 18. Nxh7 {[%emt 0:05:15]} Bf7 {[%emt 0:02:02]} 19. Qh3 {[%emt 0:05:43]} Kg8 {[%emt 0:00:19]} 20. Ng5 {[%emt 0:01:49]} Re8 {[%emt 0:00:30]} 21. Nf6+ {[%emt 0:02:20]} 1-0